fUSD/lending_fUSD_20241117
["ID","MTS","AMOUNT","RATE_DAILY","PERIOD"]
[342412281,1731826238462,-432.6281399,9.951e-05,2]
[342412282,1731826238474,-736.0790488,9.951e-05,2]
[342412283,1731826238484,-893.5809514,9.952e-05,2]
[342412284,1731826238496,-275.1262373,9.952e-05,2]
[342412285,1731826238505,-83.20861434,9.973e-05,2]
[342412286,1731826238572,-416.79138566,9.973e-05,2]
[342412287,1731826238581,-227.67070816,9.973e-05,2]
[342412288,1731826238591,-1168.7071887,9.985e-05,2]
[342412289,1731826238600,-153.0,9.986e-05,2]
[342412290,1731826238609,-1168.7071887,9.987e-05,2]
[342412291,1731826238618,-506.6827453,9.991e-05,2]
[342412292,1731826238627,-156.5922728,9.991e-05,2]
[342412293,1731826238636,-338.5435815,9.991e-05,2]
[342412294,1731826238645,-565.1190238,9.993e-05,2]
[342412295,1731826238654,-623.5553023,9.993e-05,2]
[342412296,1731826238663,-156.5922728,9.993e-05,2]
[342412297,1731826238672,-156.5922728,9.993e-05,2]
[342412298,1731826238681,-379.9574791,9.993e-05,2]
[342412299,1731826238691,-196.41394658,9.993e-05,2]
[342412300,1731826238723,-224.95743002,9.993e-05,2]
[342412301,1731826238733,-1168.7071887,9.998e-05,2]
[342412302,1731826238743,-571.36,9.998e-05,2]
[342412303,1731826238752,-3460.98449983,9.999e-05,2]
[342412304,1731826238765,-715.55436445,9.999e-05,2]
[342412305,1731826238774,-3300.68858197,0.0001,2]
[342412306,1731826238783,-5439.34012771,0.0001,2]
[342412307,1731826238802,-4392.91305409,0.0001,2]
[342412308,1731826238813,-478.31959918,0.0001,2]
[342412309,1731826238829,-2724.56352432,0.0001,2]
[342412310,1731826238840,-326.6478624,0.0001,2]
[342412311,1731826238851,-566.76354058,0.0001,2]
[342412312,1731826238862,-805.72100215,0.0001,2]
[342412313,1731826238896,-540.65357155,0.0001,2]
[342412314,1731826238907,-2204.92451438,0.0001,2]
[342412315,1731826238923,-1002.10843179,0.0001,2]
[342412318,1731826240358,-668.235384,8.58e-05,2]
[342412319,1731826240369,-4883.87071231,8.58e-05,2]
[342412320,1731826240380,-388.8658327,8.58e-05,2]
[342412321,1731826240582,-1220.43692688,8.58e-05,2]
[342412322,1731826240592,-373.44245562,0.0001,2]
[342412323,1731826240603,-473.80999999,0.0001,2]
[342412324,1731826240614,-413.19752998,0.0001,2]
[342412325,1731826240625,-789.31021675,0.0001,2]
[342412326,1731826243428,-338.16761188,0.0001,2]
[342412329,1731826243616,-4956.34432876,0.0001,2]
[342412330,1731826243628,-156461.3810321,0.0001,2]
[342412331,1731826243637,-11652.13001505,0.0001,2]
[342412332,1731826243649,-1892.98,0.0001,2]
[342412333,1731826243660,-2708.66,0.0001,2]
[342412334,1731826243671,-10000.17178513,0.0001,2]
[342412335,1731826243683,-4184.18787723,0.0001,2]
[342412336,1731826243694,-2285.82171714,0.0001,2]
[342412337,1731826243793,-330.5,0.0001,2]
[342412338,1731826243804,-3012.56353156,0.0001,2]
[342412339,1731826243816,-4553.80390513,0.0001,2]
[342412340,1731826243827,-2354.96752875,0.0001,2]
[342412417,1731826246780,-6.25300526,9.639e-05,2]
[342412418,1731826246792,-243.74699474,9.639e-05,2]
[342412419,1731826246801,-900.04907995,0.0001,2]
[342412420,1731826246825,-3460.76994827,0.0001,2]
[342412421,1731826247071,-120.25,0.0001,2]
[342412422,1731826247083,-1592.87941135,0.0001,2]
[342412423,1731826247094,-2990.87333237,0.0001,2]
[342412424,1731826247106,-299.85503232,0.0001,2]
[342412425,1731826247117,-908.82247039,0.0001,2]
[342412428,1731826378318,290.1,7.617e-05,2]
[342412429,1731826445290,427.04,0.00016658,30]
[342412431,1731826641372,2492.84,8.219e-05,2]
[342412435,1731827134811,800.0,8.469e-05,2]
[342412436,1731827134836,800.0,8.469e-05,2]
[342412437,1731827134860,784.24,8.469e-05,2]
[342412438,1731827136680,15.76,8.469e-05,2]
[342412439,1731827136703,800.0,8.469e-05,2]
[342412440,1731827136725,800.0,8.469e-05,2]
[342412441,1731827136757,236.66,8.469e-05,2]
[342412443,1731827218644,405.68,0.00016658,30]
[342412444,1731827256817,290.0,8.494e-05,2]
[342412445,1731827256846,710.0,8.494e-05,2]
[342412446,1731827272908,500.0,8.476e-05,2]
[342412448,1731827323615,2368.19,8.219e-05,2]
[342412449,1731827357203,425.89,8.477e-05,2]
[342412461,1731827431524,-250.0,8.503e-05,2]
[342412462,1731827431534,-250.0,8.55e-05,2]
[342412463,1731827431544,-331.58410695,8.569e-05,2]
[342412464,1731827431712,-558.87589305,8.569e-05,2]
[342412465,1731827431723,-164.38,8.571e-05,2]
[342412466,1731827431732,-1500.0,8.58e-05,2]
[342412467,1731827431744,-500.0,8.58e-05,2]
[342412468,1731827431754,-200.0,8.584e-05,2]
[342412469,1731827431763,-180.3521504,8.612e-05,2]
[342412470,1731827431775,-69.6478496,8.612e-05,2]
[342412471,1731827431783,-12235.59714917,8.656e-05,2]
[342412472,1731827431799,-443.55781688,8.656e-05,2]
[342412473,1731827431960,-6337.97381891,8.656e-05,2]
[342412474,1731827431975,-4882.87121504,8.656e-05,2]
[342412475,1731827431988,-388.26,8.74e-05,2]
[342412476,1731827431997,-1749.79,8.754e-05,2]
[342412477,1731827432006,-406.54,8.787e-05,2]
[342412478,1731827432015,-1500.0,8.803e-05,2]
[342412479,1731827432024,-137.02680096,8.841e-05,2]
[342413011,1731827437656,-62.97319904,8.841e-05,2]
[342413013,1731827437665,-220.48,8.905e-05,2]
[342413015,1731827437675,-2000.0,8.905e-05,2]
[342413017,1731827437684,-181.64,9.014e-05,2]
[342413019,1731827437693,-790.96053126,9.184e-05,2]
[342413021,1731827437704,-2258.7338945,9.184e-05,2]
[342413034,1731827437837,-3354.89557424,9.184e-05,2]
[342413036,1731827437847,-165.46,9.328e-05,2]
[342413038,1731827437857,-150.0,9.397e-05,2]
[342413040,1731827437866,-1000.0,9.556e-05,2]
[342413042,1731827437876,-200.0,9.6e-05,2]
[342413044,1731827437886,-1400.0,9.676e-05,2]
[342413046,1731827437895,-866.54,9.696e-05,2]
[342413048,1731827437904,-150.0,9.799e-05,2]
[342413050,1731827437914,-14807.3124,9.8e-05,2]
[342413052,1731827437923,-569.7353472,9.8e-05,2]
[342413054,1731827437932,-1161.0,9.849e-05,2]
[342413056,1731827437942,-5936.0,9.849e-05,2]
[342413058,1731827437952,-13647.0,9.849e-05,2]
[342413060,1731827437962,-206.449,9.849e-05,2]
[342413062,1731827437975,-244.888,9.849e-05,2]
[342413064,1731827437986,-1092.0,9.849e-05,2]
[342413066,1731827437996,-575.5665255,9.883e-05,2]
[342413068,1731827438006,-500.0,9.883e-05,2]
[342413070,1731827438016,-12305.245,9.9e-05,2]
[342413072,1731827438025,-9469.3765,9.9e-05,2]
[342413074,1731827438035,-3251.17825324,9.9e-05,2]
[342413076,1731827438045,-179553.29427718,9.9e-05,2]
[342413078,1731827438055,-2261100.58512446,9.9e-05,2]
[342413080,1731827438064,-500.0,9.92e-05,2]
[342413082,1731827438074,-1500.0,9.95e-05,2]
[342413084,1731827438083,-500.0,9.95e-05,2]
[342413086,1731827438092,-7646.346,9.973e-05,2]
[342413088,1731827438102,-363.1048987,9.992e-05,2]
[342413090,1731827438111,-406.8651087,9.992e-05,2]
[342413092,1731827438121,-350.0212281,9.993e-05,2]
[342413094,1731827438130,-336.9375575,9.993e-05,2]
[342413096,1731827438139,-392.204637,9.993e-05,2]
[342413098,1731827438148,-377.5441654,9.993e-05,2]
[342413100,1731827438158,-1639.688,9.999e-05,2]
[342413102,1731827438167,-171.845,9.999e-05,2]
[342413104,1731827438176,-547.55,9.999e-05,2]
[342413105,1731827438186,-79662.34255654,0.0001,2]
[342413107,1731827438195,-670.77230805,0.0001,2]
[342413109,1731827438204,-15966.51736488,0.0001,2]
[342413111,1731827438214,-654043.30859083,0.0001,2]
[342413114,1731827438230,-592.08569065,0.0001,2]
[342413116,1731827438241,-301.60528413,0.0001,2]
[342413118,1731827438253,-947.89656734,0.0001,2]
[342413258,1731827439606,-398.06,9.023e-05,2]
[342413261,1731827439616,-161.26649221,0.0001,2]
[342413270,1731827439696,-1925.72164425,0.0001,2]
[342413272,1731827439708,-1571.95,0.0001,2]
[342413274,1731827439719,-3206.4969001,0.0001,2]
[342413282,1731827439795,-6220.80100886,0.0001,2]
[342413284,1731827439806,-469.959,0.0001,2]
[342413406,1731827442524,-59374.65443274,0.0001,2]
[342413414,1731827442589,-2776.4999,0.0001,2]
[342413418,1731827442770,-379.37789688,0.0001,2]
[342413420,1731827442822,-1051.49845709,0.0001,2]
[342413421,1731827442835,-367.54797102,0.0001,2]
[342413422,1731827442847,-726.52061781,0.0001,2]
[342413423,1731827442874,-8005.92387998,0.0001,2]
[342413478,1731827445572,-1263.97862065,0.0001,2]
[342413479,1731827445649,-10000.71913632,0.0001,2]
[342413480,1731827445726,-1224.9376738,0.0001,2]
[342413481,1731827446523,-301.92915026,0.0001,2]
[342413482,1731827446534,-1301.37556257,0.0001,2]
[342413483,1731827446610,-26.21586828,0.0001,2]
[342413484,1731827446623,-4550.0,0.0001,2]
[342413485,1731827446635,-540.17152796,0.0001,2]
[342413486,1731827577298,172.22,8.462e-05,2]
[342413487,1731827636429,627.78,8.496e-05,2]
[342413488,1731827636452,800.0,8.496e-05,2]
[342413489,1731827636473,72.22,8.496e-05,2]
[342413490,1731827829809,250.0,8.455e-05,2]
[342413491,1731827835535,477.78,8.455e-05,2]
[342413492,1731827835559,800.0,8.455e-05,2]
[342413493,1731827835580,85.13,8.455e-05,2]
[342413494,1731827842569,250.0,8.455e-05,2]
[342413495,1731827843830,464.87,8.455e-05,2]
[342413496,1731827843855,41.58,8.455e-05,2]
[342413497,1731827858338,23900.0,8.455e-05,2]
[342413498,1731827938253,165.69,8.45e-05,2]
[342413499,1731827988452,290.15,6.776e-05,2]
[342413500,1731828001204,200.0,8.47e-05,2]
[342413501,1731828012161,2320.22,8.219e-05,2]
[342413502,1731828038907,250.0,8.47e-05,2]
[342413503,1731828041406,385.39,0.00016658,30]
[342413504,1731828129939,305.16,8.452e-05,2]
[342413505,1731828172634,500.0,8.45e-05,2]
[342413506,1731828186978,2000.0,8.45e-05,2]
[342413507,1731828189593,1000.0,8.45e-05,2]
[342413509,1731828229511,-285.0,8.506e-05,2]
[342413510,1731828355181,833.48094184,6.94e-05,2]
[342413511,1731828369425,719.47,8.489e-05,2]
[342413512,1731828369660,563.32,8.489e-05,2]
[342413513,1731828461402,1000.0,0.00024,60]
[342413514,1731828478831,1000.0,0.00024,60]
[342413515,1731828501632,1000.0,0.00024,60]
[342413516,1731828506207,681.45,8.478e-05,2]
[342413517,1731828509446,1000.0,0.00024,60]
[342413518,1731828510970,172.22,8.478e-05,2]
[342413519,1731828516501,23900.0,8.492e-05,2]
[342413520,1731828516905,1000.0,0.00024,60]
[342413521,1731828524389,1000.0,0.00024,60]
[342413522,1731828530826,250.0,8.478e-05,2]
[342413523,1731828531691,1000.0,0.00024,60]
[342413534,1731828538796,1000.0,0.00024,60]
[342413535,1731828547486,250.0,8.478e-05,2]
[342413536,1731828554033,1000.0,0.00024,60]
[342413543,1731828561000,1000.0,0.00024,60]
[342413544,1731828567946,1000.0,0.00024,60]
[342413545,1731828579785,1000.0,0.00024,60]
[342413558,1731828613906,1000.0,0.00024,60]
[342413564,1731828631689,-254.01813235,8.58e-05,2]
[342413565,1731828631700,-245.98186765,8.58e-05,2]
[342413566,1731828631710,-324.10813235,8.58e-05,2]
[342413567,1731828631721,-1075.89186765,8.58e-05,2]
[342413568,1731828631730,-300.0,9e-05,3]
[342413569,1731828631739,-600.0,9.1e-05,3]
[342413570,1731828631748,-1544.8,9.146e-05,2]
[342413571,1731828631757,-389.88465616,9.148e-05,2]
[342413572,1731828631768,-275.14447056,9.148e-05,2]
[342413573,1731828631783,-879.77087328,9.148e-05,2]
[342413574,1731828631791,-1544.8,9.15e-05,2]
[342413575,1731828631800,-1544.8,9.153e-05,2]
[342413576,1731828631810,-1544.8,9.155e-05,2]
[342413577,1731828631820,-1544.8,9.158e-05,2]
[342413578,1731828631828,-1544.8,9.16e-05,2]
[342413579,1731828631837,-1544.8,9.162e-05,2]
[342413580,1731828631846,-1544.8,9.165e-05,2]
[342413581,1731828631856,-1544.8,9.167e-05,2]
[342413582,1731828631865,-1544.8,9.17e-05,2]
[342413583,1731828631874,-1544.8,9.172e-05,2]
[342413584,1731828631883,-1544.8,9.175e-05,2]
[342413585,1731828631893,-1544.8,9.177e-05,2]
[342413586,1731828631902,-1544.8,9.179e-05,2]
[342413587,1731828631914,-1544.8,9.182e-05,2]
[342413588,1731828631923,-1544.8,9.184e-05,2]
[342413589,1731828631932,-1544.8,9.187e-05,2]
[342413590,1731828631941,-1544.8,9.189e-05,2]
[342413591,1731828631950,-1544.8,9.191e-05,2]
[342413592,1731828631960,-1000.0,9.199e-05,2]
[342413593,1731828631969,-7646.346,9.2e-05,2]
[342413594,1731828631978,-1000.0,9.2e-05,3]
[342413595,1731828631987,-150.0,9.2e-05,2]
[342413596,1731828631996,-1300.0,9.3e-05,3]
[342413597,1731828632005,-1700.0,9.4e-05,3]
[342413598,1731828632015,-150.0,9.43e-05,2]
[342413599,1731828632024,-300.0,9.5e-05,3]
[342413600,1731828632034,-1000.0,9.507e-05,2]
[342413601,1731828632043,-305.16,9.508e-05,2]
[342413602,1731828632052,-300.0,9.6e-05,3]
[342413603,1731828632060,-940.87,9.67e-05,2]
[342413604,1731828632069,-8989.89058482,9.67e-05,2]
[342413605,1731828632085,-315.280662,9.67e-05,2]
[342413606,1731828632096,-1472.85875318,9.67e-05,2]
[342413607,1731828632105,-2000.0,9.676e-05,2]
[342413608,1731828632114,-1246.45056545,9.676e-05,2]
[342413609,1731828632143,-153.54943455,9.676e-05,2]
[342413610,1731828632153,-300.0,9.7e-05,3]
[342413611,1731828632166,-1289.117979,9.8e-05,2]
[342413612,1731828632178,-4416.27124311,9.8e-05,2]
[342413613,1731828632203,-1887.01667789,9.8e-05,2]
[342413614,1731828632212,-300.0,9.8e-05,3]
[342413615,1731828632221,-1290.9445875,9.8e-05,2]
[342413616,1731828632233,-170.0554125,9.8e-05,2]
[342413617,1731828632243,-165.69,9.858e-05,2]
[342413618,1731828632252,-1216.6781835,9.9e-05,2]
[342413619,1731828632263,-658.25,9.9e-05,2]
[342413620,1731828632274,-3859.34565087,9.9e-05,2]
[342413621,1731828632292,-523.27635092,9.9e-05,2]
[342413622,1731828632303,-1306.47276092,9.9e-05,2]
[342413623,1731828632315,-9949.83316868,9.9e-05,2]
[342413624,1731828632327,-682.4373262,9.9e-05,2]
[342413625,1731828637803,-164.38,9.543e-05,2]
[342413626,1731828637814,-649.42063814,9.9e-05,2]
[342413627,1731828637827,-610.78572538,9.9e-05,2]
[342413628,1731828638069,-9416.10339539,9.9e-05,2]
[342413629,1731828638081,-798.20859405,9.9e-05,2]
[342413630,1731828638093,-4915.75320747,9.9e-05,2]
[342413631,1731828638107,-17572.82070087,9.9e-05,2]
[342413632,1731828638118,-2421.51388267,9.9e-05,2]
[342413633,1731828638134,-1730.96380311,9.9e-05,2]
[342413634,1731828638145,-700.0,9.9e-05,3]
[342413635,1731828638155,-298.12619689,9.92e-05,2]
[342413636,1731828638234,-2398.42380311,9.92e-05,2]
[342413637,1731828638245,-171.845,9.92e-05,2]
[342413638,1731828638256,-500.0,9.92e-05,2]
[342413639,1731828638267,-267.20029567,9.95e-05,2]
[342413658,1731828639767,-625.42636932,9.95e-05,2]
[342413659,1731828639832,-507.37333501,9.95e-05,2]
[342413660,1731828639843,-395.2854421,9.992e-05,2]
[342413661,1731828639853,-193.62622288,9.992e-05,2]
[342413662,1731828639870,-252.62964792,9.992e-05,2]
[342413663,1731828639881,-369.3295541,9.993e-05,2]
[342413664,1731828639892,-343.3736662,9.993e-05,2]
[342413665,1731828639903,-34.25469208,9.993e-05,2]
[342413666,1731828639916,-381.58440222,9.993e-05,2]
[342413667,1731828639928,-92.9720109,9.993e-05,2]
[342413668,1731828639946,-292.4503069,9.993e-05,2]
[342413669,1731828639957,-534.1496981,9.999e-05,2]
[342413670,1731828639975,-49.7603019,9.999e-05,2]
[342413671,1731828639986,-3202.41057944,0.0001,2]
[342413672,1731828639997,-5951.20159066,0.0001,2]
[342413676,1731828643120,-5220.84929475,0.0001,2]
[342413677,1731828643132,-500.0,0.0001,2]
[342413682,1731828645692,-3576.98418797,0.0001,2]
[342413683,1731828645704,-6070.48645063,0.0001,2]
[342413684,1731828645715,-1766.48472,0.0001,2]
[342413685,1731828645828,-1369.1394045,0.0001,2]
[342413686,1731828645839,-2255.6633404,0.0001,2]
[342413687,1731828645968,-7685.39929531,0.0001,2]
[342413688,1731828646014,-2297.05,0.0001,2]
[342413689,1731828646155,-10459.05251779,0.0001,2]
[342413691,1731828699021,353.0,0.00023,120]
[342413693,1731828729274,366.12,0.00016658,30]
[342413694,1731828753373,2272.33,8.219e-05,2]
[342413701,1731829334328,-500.0,8.58e-05,2]
[342413702,1731829334356,-646.35,8.58e-05,2]
[342413703,1731829391516,-453.65,8.58e-05,2]
[342413704,1731829413919,500.0,8.58e-05,2]
[342413705,1731829418888,1100.0,8.58e-05,2]
[342413706,1731829462720,500.0,0.0002,60]
[342413707,1731829474307,1136.35,8.219e-05,2]
[342413708,1731829474337,1022.36,8.219e-05,2]
[342413709,1731829525859,347.81,0.00016658,30]
[342413710,1731829570033,14276.11817773,8e-05,2]
[342413712,1731829747183,500.0,0.00024,60]
[342413718,1731829788487,500.0,0.00024,60]
[342413737,1731829831919,-501.55,8.928e-05,2]
[342413738,1731829831928,-162.07,8.952e-05,2]
[342413739,1731829831938,-1926.52,8.952e-05,2]
[342413740,1731829831947,-250.0,8.956e-05,2]
[342413742,1731829831956,-1000.0,8.983e-05,2]
[342413744,1731829831965,-200.0,9.088e-05,2]
[342413746,1731829831975,-318.43,9.13e-05,2]
[342413748,1731829831984,-165.69,9.168e-05,2]
[342413750,1731829831997,-18767.76733648,9.168e-05,2]
[342413751,1731829832009,-5132.23266352,9.168e-05,2]
[342413752,1731829832018,-250.0,9.178e-05,2]
[342413753,1731829832027,-250.0,9.178e-05,2]
[342413754,1731829832037,-541.18,9.178e-05,2]
[342413755,1731829832046,-298.45,9.333e-05,2]
[342413756,1731829832055,-150.0,9.342e-05,2]
[342413757,1731829832065,-166.68,9.462e-05,2]
[342413758,1731829832074,-150.0,9.477e-05,2]
[342413759,1731829832083,-323.5,9.478e-05,2]
[342413760,1731829832093,-150.0,9.478e-05,2]
[342413761,1731829832103,-152.12,9.578e-05,2]
[342413762,1731829832112,-696.56,9.578e-05,2]
[342413763,1731829832121,-150.0,9.838e-05,2]
[342413764,1731829832131,-7113.27482905,9.9e-05,2]
[342413765,1731829832147,-470.69297095,9.9e-05,2]
[342413766,1731829832157,-500.0,9.92e-05,2]
[342413767,1731829832166,-1100.0,9.95e-05,2]
[342413768,1731829832176,-874.38567116,9.988e-05,2]
[342413769,1731829832186,-162.2943825,9.988e-05,2]
[342413770,1731829832197,-162.2943825,9.993e-05,2]
[342413771,1731829832207,-162.2943825,9.993e-05,2]
[342413772,1731829832217,-2519.784,9.999e-05,2]
[342413773,1731829832227,-171.84687509,9.999e-05,2]
[342413774,1731829832238,-559.58,9.999e-05,2]
[342413775,1731829832248,-3154.37442075,0.0001,2]
[342413776,1731829832259,-266688.72739746,0.0001,2]
[342413777,1731829832271,-34880.89579139,0.0001,2]
[342413778,1731829832313,-332.3222,0.0001,2]
[342413779,1731829832325,-275400.0000285,0.0001,2]
[342413780,1731829832338,-68939.96992793,0.0001,2]
[342413781,1731829832369,-62821.12404854,0.0001,2]
[342413785,1731829837888,-1190.9,0.0001,2]
[342413788,1731829837953,-0.99998,0.0001,2]
[342413789,1731829838103,-5000.0,0.0001,2]
[342413790,1731829838157,-75911.15139042,0.0001,2]
[342413791,1731829838168,-1506.3,0.0001,2]
[342413792,1731829838187,-4561.295792,0.0001,2]
[342413793,1731829838247,-88020.67587624,0.0001,2]
[342413794,1731829838257,-1247768.72925788,0.0001,2]
[342413795,1731829838269,-70097.10008173,0.0001,2]
[342413799,1731829840033,-1009.71667059,0.0001,2]
[342413800,1731829840046,-410.4575,0.0001,2]
[342413801,1731829840058,-1603.25,0.0001,2]
[342413802,1731829840070,-1399.33930699,0.0001,2]
[342413803,1731829840177,-1369.0,0.0001,2]
[342413812,1731829843657,-3741.10922757,0.0001,2]
[342413813,1731829843669,-3350.94659882,0.0001,2]
[342413814,1731829843682,-1067.6047624,0.0001,2]
[342413815,1731829843693,-455.24917089,0.0001,2]
[342413816,1731829843704,-4002.3379599,0.0001,2]
[342413817,1731829843723,-3265.01060924,0.0001,2]
[342413818,1731829843784,-8342.08187435,0.0001,2]
[342413819,1731829843795,-640.16858785,0.0001,2]
[342413820,1731829843806,-489.18296135,0.0001,2]
[342413821,1731829843817,-362.76485203,0.0001,2]
[342413822,1731829843839,-4546.25,0.0001,2]
[342413835,1731829845998,-690.600222,0.0001,2]
[342413836,1731829846009,-2753.86947984,0.0001,2]
[342413837,1731829846020,-1434.79165165,0.0001,2]
[342413838,1731829846031,-883.173025,0.0001,2]
[342413839,1731829846042,-1340.08370508,0.0001,2]
[342413840,1731829846053,-2411.99569205,0.0001,2]
[342413841,1731829846064,-569.62893995,0.0001,2]
[342413842,1731829846092,-14169.20881339,0.0001,2]
[342413843,1731829846103,-250.4355,0.0001,2]
[342413844,1731829846121,-450.9,0.0001,2]
[342413845,1731829846131,-401.98,0.0001,2]
[342413846,1731829846142,-1068.63156,0.0001,2]
[342413847,1731829846154,-2307.54999,0.0001,2]
[342413848,1731829846166,-251.28,0.0001,2]
[342413849,1731829846177,-4519.28765592,0.0001,2]
[342413850,1731829846189,-2699.80418807,0.0001,2]
[342413851,1731829846200,-3118.69337497,0.0001,2]
[342413853,1731829846223,-959.66047797,0.0001,2]
[342413854,1731829846235,-348.547565,0.0001,2]
[342413855,1731829846268,-14258.89913316,0.0001,2]
[342413856,1731829846279,-359.00939672,0.0001,2]
[342413860,1731829946749,500.0,0.00024,60]
[342413861,1731829955284,500.0,0.00024,60]
[342413862,1731829963285,500.0,0.00024,60]
[342413863,1731829971482,500.0,0.00024,60]
[342413864,1731829978764,500.0,0.00024,60]
[342413865,1731829984315,500.0,0.00024,60]
[342413866,1731829991530,632.84597724,0.00024,60]
[342413867,1731830026367,500.0,0.00024,60]
[342413868,1731830110736,1000.0,0.00024,60]
[342413869,1731830121359,2120.73,8.219e-05,2]
[342413873,1731830243273,241.649,0.00016658,30]
[342413879,1731830364235,168.3,6.823e-05,2]
[342413881,1731830630325,427.6066535,0.00024,60]
[342413882,1731830759322,165.69,8.49e-05,2]
[342413883,1731830829145,-551.19,8.504e-05,2]
[342413884,1731830829166,-250.0,8.509e-05,2]
[342413885,1731830829188,-398.76,8.524e-05,2]
[342413886,1731830829208,-1000.0,8.529e-05,2]
[342413887,1731830829229,-1434.31,9.18e-05,2]
[342413888,1731830829250,-1434.31,9.182e-05,2]
[342413889,1731830829270,-185.48616879,9.185e-05,2]
[342413890,1731830854104,-1248.82383121,9.185e-05,2]
[342413891,1731830854128,-1434.31,9.187e-05,2]
[342413892,1731830854151,-1434.31,9.19e-05,2]
[342413893,1731830854172,-300.0,9.191e-05,2]
[342413894,1731830854195,-1434.31,9.192e-05,2]
[342413895,1731830854219,-1434.31,9.194e-05,2]
[342413896,1731830854246,-1434.31,9.197e-05,2]
[342413897,1731830854268,-1434.31,9.199e-05,2]
[342413898,1731830854289,-1434.31,9.202e-05,2]
[342413899,1731830854313,-1434.31,9.204e-05,2]
[342413900,1731830854334,-1434.31,9.206e-05,2]
[342413901,1731830854356,-1434.31,9.209e-05,2]
[342413902,1731830854377,-1434.31,9.211e-05,2]
[342413903,1731830854398,-1434.31,9.214e-05,2]
[342413904,1731830854418,-1434.31,9.216e-05,2]
[342413905,1731830854440,-1434.31,9.218e-05,2]
[342413906,1731830854462,-1434.31,9.221e-05,2]
[342413907,1731830854483,-1434.31,9.223e-05,2]
[342413908,1731830854505,-1434.31,9.226e-05,2]
[342413909,1731830854525,-250.0,9.318e-05,2]
[342413910,1731830854546,-150.0,9.318e-05,2]
[342413911,1731830854569,-2000.0,9.336e-05,2]
[342413912,1731830854588,-150.0,9.346e-05,2]
[342413913,1731830854608,-7646.346,9.424e-05,2]
[342413914,1731830854630,-7231.53600077,9.425e-05,2]
[342413927,1731831032098,-370.82,9.195e-05,2]
[342413928,1731831032108,-99.77679604,9.229e-05,2]
[342413929,1731831032119,-846.47,9.229e-05,2]
[342413930,1731831032131,-350.2299999,9.229e-05,2]
[342413931,1731831032142,-9392.69226993,9.229e-05,2]
[342413932,1731831032158,-5713.61235575,9.229e-05,2]
[342413933,1731831032169,-7497.21857838,9.229e-05,2]
[342413934,1731831032179,-250.0,9.235e-05,2]
[342413935,1731831032188,-200.0,9.463e-05,2]
[342413936,1731831032198,-398.76,9.589e-05,2]
[342413937,1731831032207,-1000.0,9.595e-05,2]
[342413938,1731831032221,-639.94296999,9.606e-05,2]
[342413939,1731831032259,-776.58033881,9.606e-05,2]
[342413940,1731831032271,-3434.4766912,9.606e-05,2]
[342413941,1731831032281,-900.0,9.676e-05,2]
[342413942,1731831032292,-940.87,9.763e-05,2]
[342413943,1731831032302,-410.82,9.9e-05,2]
[342413944,1731831032312,-2247.855,9.9e-05,2]
[342413945,1731831032321,-500.0,9.92e-05,2]
[342413946,1731831032332,-538.685,9.943e-05,2]
[342413947,1731831032343,-150.0,9.943e-05,2]
[342413948,1731831032353,-1159.0,9.943e-05,2]
[342413949,1731831032363,-13647.0,9.943e-05,2]
[342413950,1731831032373,-712.7032203,9.992e-05,2]
[342413951,1731831032383,-521.13783968,9.992e-05,2]
[342413952,1731831032393,-160.867206,9.999e-05,2]
[342413953,1731831032403,-3562.58507646,9.999e-05,2]
[342413954,1731831032415,-3276.83492354,9.999e-05,2]
[342413955,1731831032424,-150.0,9.999e-05,2]
[342413956,1731831032434,-536.26,9.999e-05,2]
[342413957,1731831032444,-3107.05880444,0.0001,2]
[342413958,1731831032453,-173620.88322742,0.0001,2]
[342413959,1731831032465,-108791.77403224,0.0001,2]
[342413960,1731831032477,-15650.80747089,0.0001,2]
[342413961,1731831032488,-730.26123797,0.0001,2]
[342413963,1731831038089,-1092.0,9.943e-05,2]
[342413964,1731831038099,-911.71600293,0.0001,2]